bitfinex/quotes_ETHUSD_20250904
["timestamp","ask_amount","ask_price","bid_price","bid_amount"]
[1757029865447,1.2466,4314.4,4314.3,0.004]
[1757029866176,1.26972688,4314.4,4314.3,0.004]
[1757029866368,3.56441939,4314.4,4314.3,0.004]
[1757029867468,9.60872688,4314.4,4312.8,0.025]
[1757029867632,10.70090906,4314.3,4312.8,0.025]
[1757029867833,0.792,4313.9,4312.8,0.025]
[1757029868046,2.62692551,4312.9,4312.8,0.025]
[1757029868235,8.46405239,4312.9,4312.8,0.025]
[1757029868435,8.44092551,4312.9,4312.8,0.025]
[1757029868635,9.37922551,4312.9,4312.8,0.025]
[1757029868935,9.37822551,4312.9,4312.8,0.025]
[1757029870243,2.31905568,4312.1,4311.8,0.025]
[1757029870443,8.13205568,4312.1,4311.8,0.025]
[1757029870742,9.37695568,4312.1,4311.8,0.025]
[1757029871066,9.37295568,4312.1,4311.8,0.025]
[1757029871561,12.37295568,4312.1,4311.8,0.025]
[1757029872631,8.27195568,4312.1,4311.8,0.025]
[1757029872834,12.37095568,4312.1,4311.8,0.025]
[1757029873566,2.31916324,4311.9,4311.8,0.025]
[1757029873767,2.34229012,4311.9,4311.8,0.025]
[1757029873968,3.58719012,4311.9,4311.8,0.025]
[1757029874169,0.792,4311.8,4310.8,0.025]
[1757029874371,2.31970122,4310.9,4310.8,0.025]
[1757029874571,8.4703281,4310.9,4310.8,0.025]
[1757029874875,9.37960122,4310.9,4310.8,0.025]
[1757029875180,8.92000122,4310.9,4310.8,0.025]
[1757029875376,2.31987459,4310.6,4309.8,0.025]
[1757029875541,1.46312688,4310.5,4309.8,0.025]
[1757029875740,1.709,4310.4,4309.8,0.025]
[1757029875939,2.34320463,4310.3,4309.8,0.025]
[1757029876151,0.02312688,4310.3,4309.8,0.025]
[1757029876454,7.39149359,4310.2,4309.8,0.025]
[1757029876641,2.81606149,4310.1,4309.8,0.025]
[1757029876848,0.49592688,4310.1,4309.8,0.025]
[1757029877176,4.138,4310.0,4309.8,0.025]
[1757029877683,1.709,4310.4,4309.9,0.3044]
[1757029877848,1.709,4310.4,4309.9,13.72694309]
[1757029878043,4.135,4310.5,4310.0,0.8741]
[1757029878273,0.3125,4310.1,4309.8,0.025]
[1757029878439,4.47062688,4310.1,4309.8,0.025]
[1757029878645,0.4728,4310.0,4309.8,0.025]
[1757029879038,4.135,4310.1,4309.8,0.025]
[1757029879256,0.3125,4309.9,4309.8,0.025]
[1757029879771,0.7853,4309.9,4309.8,0.025]
[1757029881072,4.135,4310.1,4309.8,0.025]
[1757029881371,4.131,4310.0,4309.8,0.025]
[1757029881576,0.3125,4309.9,4309.8,0.025]
[1757029881779,0.7853,4309.9,4309.8,0.025]
[1757029881967,4.129,4309.9,4309.8,0.3294]
[1757029882568,4.129,4309.9,4309.8,0.025]
[1757029885677,4.129,4309.9,4309.8,5.07077812]
[1757029886066,4.129,4309.9,4309.8,5.37517812]
[1757029886362,0.4596,4310.4,4309.8,5.37517812]
[1757029886363,4.125,4310.1,4309.8,5.37517812]
[1757029886563,4.125,4310.1,4310.0,5.04577812]
[1757029886881,0.4596,4310.4,4310.0,5.04577812]
[1757029887085,4.12,4310.4,4310.3,5.04577812]
[1757029887294,4.119,4310.6,4310.3,12.41157527]
[1757029887587,0.001,4310.9,4310.5,10.39595624]
[1757029887799,0.001,4310.9,4310.8,10.09155624]
[1757029888273,0.001,4310.9,4310.8,5.04577812]
[1757029889264,0.001,4310.9,4310.8,10.09155624]
[1757029889479,0.001,4310.9,4310.8,5.04577812]
[1757029890205,0.001,4310.9,4310.8,10.39595624]
[1757029890390,0.001,4311.4,4310.9,2.31965139]
[1757029890586,0.001,4311.4,4310.8,12.30965186]
[1757029890587,0.001,4311.4,4311.3,5.04577812]
[1757029891494,0.001,4311.4,4310.8,12.8483154]
[1757029891815,0.001,4311.4,4311.3,2.623886]
[1757029892102,0.001,4311.4,4311.3,3.11823573]
[1757029892300,0.001,4311.4,4311.3,3.497986]
[1757029892907,0.025,4312.8,4311.4,2.3194322]
[1757029893123,0.025,4312.8,4312.3,10.05676354]
[1757029893309,0.025,4312.8,4312.2,2.31894865]
[1757029893310,0.025,4312.8,4312.1,4.11]
[1757029893609,0.4978,4312.8,4312.1,6.42904435]
[1757029893905,0.4978,4312.8,4312.2,2.3189995]
[1757029894113,0.4978,4312.8,4312.1,6.42905527]
[1757029894307,0.4978,4312.8,4312.1,4.11]
[1757029894613,2.8164821,4312.8,4312.1,4.11]
[1757029895003,2.31873403,4312.7,4312.1,4.11]
[1757029895510,0.4978,4312.8,4311.8,2.31920927]
[1757029895511,2.31889389,4312.5,4311.8,4.105]
[1757029895713,2.79159083,4312.6,4311.8,4.105]
[1757029896506,2.80328032,4312.8,4311.9,2.31915274]
[1757029896707,2.34368032,4312.8,4311.9,2.31915274]
[1757029897514,2.34369446,4312.8,4311.9,2.31914786]
[1757029897910,2.34368131,4312.8,4311.9,1.32317373]
[1757029898135,0.025,4312.8,4312.0,2.31909725]
[1757029898421,2.34369404,4312.8,4311.9,3.64233381]
[1757029898711,2.31875121,4312.7,4311.9,1.32317373]
[1757029898911,2.31874077,4312.7,4311.9,1.32317373]
[1757029899086,0.442,4312.6,4311.8,4.105]
[1757029899285,2.31884057,4312.5,4311.8,4.105]
[1757029900800,2.76079173,4312.6,4311.8,4.105]
[1757029901011,2.31884442,4312.5,4311.8,4.105]
[1757029901214,2.76079442,4312.6,4311.8,4.105]
[1757029901505,0.442,4312.6,4311.8,4.105]
[1757029901707,0.025,4312.8,4311.9,2.31915543]
[1757029902186,0.025,4312.8,4311.8,4.105]
[1757029902187,0.025,4312.8,4311.8,4.5657]
[1757029902389,0.025,4312.8,4312.7,0.2914]
[1757029903202,0.025,4312.8,4312.3,4.5507]
[1757029903403,0.025,4312.8,4312.3,4.09]
[1757029906810,0.026,4312.8,4312.3,4.09]
[1757029908392,0.3165,4312.4,4311.3,2.573]
[1757029908589,0.49342688,4312.3,4311.0,2.34]
[1757029908826,3.8173,4312.2,4310.8,2.369]
[1757029909123,2.31938342,4311.5,4310.8,0.029]
[1757029909626,2.3194352,4311.4,4310.8,0.029]
[1757029909921,0.442,4311.5,4310.8,0.029]
[1757029910114,2.7613786,4311.5,4310.8,0.029]
[1757029910314,2.31944741,4311.4,4310.8,0.029]
[1757029910611,4.521,4311.5,4310.8,0.029]
[1757029910612,2.76138312,4311.5,4310.8,0.029]
[1757029910922,4.077,4311.5,4310.8,0.029]
[1757029911124,2.31933324,4311.6,4310.8,0.029]
[1757029911324,6.39638073,4311.5,4310.8,0.029]
[1757029911691,2.31938073,4311.5,4310.8,0.029]
[1757029911891,6.39538073,4311.5,4310.8,0.029]
[1757029912293,6.39438073,4311.5,4310.8,0.029]
[1757029912618,4.075,4311.5,4310.8,0.029]
[1757029912796,2.3194322,4311.4,4310.8,0.029]
[1757029913129,6.39441567,4311.5,4310.8,0.029]
[1757029913514,6.39441567,4311.5,4310.9,5.93595481]
[1757029913515,2.319486,4311.3,4310.9,5.93595481]
[1757029913717,3.23174129,4311.4,4310.9,5.93595481]
[1757029914119,2.31949066,4311.3,4310.9,5.93595481]
[1757029914730,2.31954431,4311.2,4310.9,5.93595481]
[1757029914916,2.31960217,4311.1,4310.8,0.029]
[1757029915125,0.3165,4311.0,4310.8,0.029]
[1757029915501,4.4987843,4311.4,4310.9,0.2914]
[1757029915716,4.072,4311.1,4310.9,0.2914]
[1757029916229,1.709,4311.4,4310.9,6.22735481]
[1757029916598,1.709,4311.4,4310.9,0.2914]
[1757029919121,0.442,4311.3,4310.9,0.2914]
[1757029919317,0.442,4312.9,4311.2,5.93595481]
[1757029919517,0.4703,4312.6,4312.2,5.93595481]
[1757029919711,0.9123,4312.6,4312.2,5.93595481]
[1757029919912,0.442,4312.5,4312.0,2.31910338]
[1757029920333,0.442,4312.4,4311.8,8.25514434]
[1757029920540,0.442,4312.4,4311.9,2.31915118]
[1757029920718,0.442,4312.3,4311.9,2.31915118]
[1757029920913,0.442,4312.3,4312.0,2.3190992]
[1757029922135,0.4703,4312.5,4312.0,2.3190992]
[1757029922317,0.4703,4312.5,4311.7,6.40126457]
[1757029922318,0.442,4312.4,4311.7,6.40126743]
[1757029922514,0.442,4312.4,4311.7,4.082]
[1757029922718,0.442,4312.4,4311.8,2.31917058]
[1757029923509,0.442,4312.4,4311.7,6.40121967]
[1757029923709,0.442,4312.4,4311.7,7.27327673]
[1757029924114,0.442,4312.4,4311.8,2.31921152]
[1757029924738,0.442,4312.4,4311.9,2.3191596]
[1757029925136,0.442,4312.4,4311.8,2.31921224]
[1757029925523,0.442,4312.4,4311.9,2.31915265]
[1757029925832,0.442,4312.4,4311.8,2.31921286]
[1757029926030,0.4703,4312.5,4311.7,4.082]
[1757029926248,0.3165,4311.8,4311.5,3.0]
[1757029926433,0.3165,4311.8,4311.4,4.072]
[1757029926747,0.9123,4311.7,4311.3,0.004]
[1757029927440,0.4703,4311.7,4311.3,0.004]
[1757029927644,0.442,4311.6,4311.3,0.004]
[1757029928324,4.071,4312.0,4311.5,0.2914]
[1757029928524,0.3165,4311.6,4311.3,0.004]
[1757029928939,0.7687,4311.6,4311.3,0.004]
[1757029929149,0.7687,4311.6,4310.8,0.029]
[1757029929150,0.792,4311.4,4310.8,1e-08]
[1757029929324,0.9062,4311.5,4308.8,0.025]
[1757029929325,5.93595481,4310.7,4308.8,0.025]
[1757029929525,2.61193944,4309.9,4308.8,0.025]
[1757029929725,6.76206632,4309.9,4308.8,0.025]
[1757029929932,7.64513944,4309.9,4308.8,0.025]
[1757029930132,3.51813944,4309.9,4308.8,0.025]
[1757029930438,7.66826632,4309.9,4308.8,0.025]
[1757029930660,7.64513944,4309.9,4308.8,0.025]
[1757029931250,3.51813944,4309.9,4309.8,1e-08]
[1757029931421,7.66926632,4309.9,4309.8,1e-08]
[1757029931614,3.51813944,4309.9,4309.8,1e-08]
[1757029931820,7.67726632,4309.9,4309.8,1e-08]
[1757029932032,7.65413944,4309.9,4309.8,1e-08]
[1757029933133,3.51813944,4309.9,4309.8,1e-08]
[1757029933327,7.67726632,4309.9,4309.8,1e-08]
[1757029933654,7.65113944,4309.9,4309.8,1e-08]
[1757029936355,7.64813944,4309.9,4309.8,1e-08]
[1757029936653,7.64413944,4309.9,4309.8,1e-08]
[1757029937032,3.51813944,4309.9,4309.8,1e-08]
[1757029937230,7.66726632,4309.9,4309.8,1e-08]
[1757029937421,7.64413944,4309.9,4309.8,1e-08]
[1757029939557,3.51813944,4309.9,4309.8,1e-08]
[1757029939731,7.66126632,4309.9,4309.8,1e-08]
[1757029939931,7.63813944,4309.9,4309.8,1e-08]
[1757029941557,3.51813944,4309.9,4309.8,1e-08]
[1757029941756,3.54126632,4309.9,4309.8,1e-08]
[1757029942130,7.20126632,4309.9,4309.8,1e-08]
[1757029942330,7.17813944,4309.9,4309.8,1e-08]
[1757029943258,7.63213944,4309.9,4309.8,1e-08]
[1757029944760,7.63313944,4309.9,4309.8,0.00400001]
[1757029948159,3.51913944,4309.9,4309.8,0.00400001]
[1757029948364,7.64826632,4309.9,4309.8,0.00400001]
[1757029948535,7.62513944,4309.9,4309.8,0.00400001]
[1757029949135,7.17113944,4309.9,4309.8,0.00400001]
[1757029951166,7.16013944,4309.9,4309.8,0.00400001]
[1757029952568,6.70793944,4309.9,4309.8,0.00400001]
[1757029953175,7.16013944,4309.9,4309.8,0.00400001]
[1757029953466,7.15713944,4309.9,4309.8,0.00400001]
[1757029954063,7.15513944,4309.9,4309.8,0.00400001]
[1757029957638,2.32123944,4309.9,4309.8,0.31770001]
[1757029957873,6.40623944,4309.9,4309.8,0.31770001]
[1757029958034,6.40623944,4309.9,4309.8,0.00400001]
[1757029958237,6.69793944,4309.9,4309.8,0.00400001]
[1757029959467,6.40623944,4309.9,4309.8,0.00400001]
[1757029960470,6.39923944,4309.9,4309.8,0.00400001]
[1757029960687,6.39723944,4309.9,4309.8,0.00400001]
[1757029961273,6.71333944,4309.9,4309.8,0.00400001]
[1757029961480,7.17553944,4309.9,4309.8,0.00400001]
[1757029962147,3.09953944,4309.9,4309.8,0.00400001]
[1757029962351,7.19866632,4309.9,4309.8,0.00400001]
[1757029962552,7.17553944,4309.9,4309.8,0.00400001]
[1757029963770,8.88553944,4309.9,4309.8,0.00400001]
[1757029968384,8.87153944,4309.9,4309.8,0.00400001]
[1757029968991,8.09323944,4309.9,4309.8,0.00400001]
[1757029969286,8.09323944,4309.9,4309.8,0.29210001]
[1757029969668,8.09323944,4309.9,4309.8,0.00400001]
[1757029969863,4.03123944,4309.9,4309.8,0.00400001]
[1757029970094,8.43046632,4309.9,4309.8,0.00400001]
[1757029970384,8.86953944,4309.9,4309.8,0.00400001]
[1757029971665,13.91859848,4309.9,4309.8,0.00400001]
[1757029971865,14.703934,4309.9,4309.8,0.00400001]
[1757029973383,14.698934,4309.9,4309.8,0.00400001]
[1757029974093,14.695934,4309.9,4309.8,0.00400001]
[1757029975212,14.695934,4309.9,4309.3,0.004]
[1757029975213,14.60769456,4309.9,4307.8,0.025]
[1757029975367,5.04905904,4308.7,4307.8,0.025]
[1757029975718,2.32127149,4308.0,4307.8,0.8816]
[1757029975861,6.9405438,4307.9,4307.8,0.025]
[1757029976066,6.39231665,4307.9,4307.8,0.025]
[1757029976289,6.70841665,4307.9,4307.8,0.025]
[1757029976794,6.39231665,4307.9,4307.8,0.025]
[1757029978200,12.68727569,4307.9,4307.8,1e-08]
[1757029978509,16.01917788,4307.9,4307.8,1e-08]
[1757029978661,18.59078036,4307.9,4307.8,1e-08]
[1757029978865,18.62029865,4307.9,4307.8,1e-08]
[1757029979702,14.54429865,4307.9,4307.8,1e-08]
[1757029979871,18.62029865,4307.9,4307.8,1e-08]
[1757029980276,18.62029865,4307.9,4306.8,1e-08]
[1757029980277,3.0,4307.7,4306.8,1e-08]
[1757029980477,1.73412688,4307.6,4306.8,1e-08]
[1757029980737,2.32183285,4307.0,4306.8,1e-08]
[1757029981006,2.32143065,4307.7,4306.8,1e-08]
[1757029981007,4.088,4307.9,4307.5,0.2881]
[1757029981303,2.32164379,4307.3,4306.8,1e-08]
[1757029981479,4.095,4307.2,4306.8,1e-08]
[1757029981681,4.095,4307.2,4306.8,0.40230001]
[1757029982001,4.095,4307.2,4307.1,0.2881]
[1757029983286,2.1732,4307.8,4307.1,0.2881]
[1757029983488,4.11612688,4307.7,4307.1,1.1447]
[1757029983878,4.09,4307.6,4307.1,1.1447]
[1757029984092,6.41149184,4307.6,4307.1,1.1447]
[1757029984299,6.41149184,4307.6,4307.2,0.4543]
[1757029984492,2.32154358,4307.5,4306.9,0.004]
[1757029984720,4.089,4307.4,4306.9,0.004]
[1757029985125,4.089,4307.4,4307.3,0.2881]
[1757029985421,1.711,4307.8,4307.3,6.19375904]
[1757029985620,4.087,4307.7,4307.4,0.8566]
[1757029985796,4.087,4307.7,4307.6,0.2881]
[1757029986110,4.088,4307.8,4307.6,1.1447]
[1757029986314,4.087,4307.9,4307.7,0.8566]
[1757029986481,4.087,4308.0,4307.8,0.2881]
[1757029986683,1.711,4308.5,4307.9,0.4543]
[1757029986885,0.04812688,4308.8,4308.4,0.2881]
[1757029987100,0.025,4308.8,4308.4,0.2881]
[1757029987523,0.025,4308.8,4308.5,0.8566]
[1757029987685,0.025,4308.8,4308.5,3.17754459]
[1757029988009,0.025,4308.8,4308.7,0.2881]
[1757029990112,0.025,4308.8,4308.7,0.7783]
[1757029990318,0.025,4308.8,4308.7,1.1806]
[1757029990690,0.025,4308.8,4308.7,0.7783]
[1757029991426,0.025,4308.8,4308.7,0.2881]
[1757029991588,0.025,4308.8,4308.7,1.1806]
[1757029991793,0.025,4308.8,4308.7,0.2881]
[1757029992711,0.025,4308.8,4308.7,5.82735904]
[1757029992906,0.025,4308.8,4308.7,1.1806]
[1757029993898,0.025,4308.8,4308.7,0.7783]
[1757029994304,0.025,4308.8,4308.7,1.1806]
[1757029994494,0.025,4308.8,4308.7,0.7783]
[1757029994695,0.025,4308.8,4308.7,0.2881]
[1757029998402,0.025,4308.8,4308.7,0.7783]
[1757029998602,0.025,4308.8,4308.7,1.1806]
[1757030000116,0.025,4308.8,4308.7,0.7783]
[1757030000798,0.025,4308.8,4308.7,0.2881]
[1757030001348,0.026,4308.8,4308.7,0.2881]
[1757030001705,0.026,4308.8,4308.7,4.31631186]
[1757030002113,0.026,4308.8,4308.7,1.99542622]
[1757030002446,0.026,4308.8,4308.7,0.7783]
[1757030003434,0.026,4308.8,4308.7,0.2881]
[1757030008948,0.026,4308.8,4308.7,2.60898564]
[1757030010934,0.026,4308.8,4308.7,0.2881]
[1757030012867,0.026,4308.8,4308.7,2.60898564]
[1757030013467,0.026,4308.8,4308.7,0.2881]
[1757030014355,1.2482,4308.8,4307.7,0.4902]
[1757030014556,0.9114,4308.7,4308.2,4.044]
[1757030014867,0.9114,4308.6,4308.2,4.044]
[1757030015031,0.4575,4308.5,4308.2,4.044]
[1757030015466,0.4575,4308.4,4308.2,4.044]
[1757030015773,0.4835,4308.8,4308.2,4.044]
[1757030016342,0.4835,4308.8,4308.2,6.36510755]
[1757030016657,0.4835,4308.8,4308.2,4.044]
[1757030016868,0.4835,4308.8,4308.2,6.36515096]
[1757030017260,0.4835,4308.8,4308.3,2.32109206]
[1757030017592,0.026,4308.8,4308.7,0.2877]
[1757030017940,0.026,4308.8,4308.7,2.60858564]
[1757030018139,0.026,4308.8,4308.7,9.44390092]
[1757030019267,0.026,4308.8,4308.7,9.04160092]
[1757030019466,0.026,4308.8,4308.7,10.99575947]
[1757030020259,0.026,4308.8,4308.7,10.59345947]
[1757030020954,0.026,4308.8,4308.7,10.99575947]
[1757030024460,0.026,4308.8,4308.7,10.59345947]
[1757030025973,0.026,4308.8,4308.7,10.10325947]
[1757030027868,0.3323,4308.8,4308.7,3.87274419]
[1757030028051,0.026,4308.8,4308.7,3.87274419]
[1757030028256,0.026,4308.8,4308.7,4.16964419]
[1757030028457,0.026,4308.8,4308.7,3.87274419]
[1757030030184,1.2515,4308.8,4308.5,0.116]
[1757030030363,0.9192,4308.7,4308.6,4.034]
[1757030030686,1.2255,4308.7,4308.6,4.034]
[1757030032561,1.2255,4308.7,4308.6,6.35493951]
[1757030032974,1.2255,4308.7,4308.6,4.034]
[1757030033155,1.2255,4308.7,4308.6,6.35493951]
[1757030033354,1.2255,4308.7,4308.6,4.034]
[1757030033570,0.026,4308.8,4308.6,4.034]
[1757030033571,0.026,4308.8,4308.6,4.3309]
[1757030033788,0.026,4308.8,4308.6,10.27371528]
[1757030034391,0.026,4308.8,4308.7,2.32088564]
[1757030035988,0.026,4308.8,4308.7,2.61778564]
[1757030036600,0.026,4308.8,4308.7,4.05382261]
[1757030036977,0.026,4308.8,4308.7,3.59752261]
[1757030038173,1e-08,4308.8,4308.7,8.38733146]
[1757030038370,1e-08,4308.8,4308.7,8.36412261]
[1757030038576,1e-08,4308.8,4308.7,10.70412261]
[1757030040917,0.001,4309.3,4309.2,6.11261635]
[1757030041121,0.001,4309.3,4309.2,18.40969326]
[1757030041276,0.001,4309.3,4309.2,19.56519326]
[1757030041699,0.001,4309.3,4309.2,19.65818829]
[1757030045005,0.001,4309.3,4309.2,12.46687798]
[1757030045714,0.7431,4309.3,4309.2,11.67387798]
[1757030046109,0.3073,4309.3,4309.2,11.67387798]
[1757030046412,0.7431,4309.3,4309.2,11.67387798]
[1757030046578,0.001,4309.3,4309.2,11.97077798]
[1757030050932,0.001,4309.3,4309.2,11.67387798]
[1757030051395,0.001,4309.3,4309.2,11.78987798]
[1757030051820,0.001,4309.3,4309.2,14.12987798]
[1757030053101,0.001,4309.3,4309.2,14.42737798]
[1757030053999,0.001,4309.3,4309.2,15.70857798]
[1757030054210,0.001,4309.3,4309.2,16.11087798]
[1757030054396,0.001,4309.3,4309.2,16.20387798]
[1757030054994,0.001,4309.3,4309.2,15.80157798]
[1757030055195,0.001,4309.3,4309.2,15.31237798]
[1757030060107,0.001,4309.3,4309.2,15.80157798]
[1757030061895,0.001,4309.3,4309.2,15.31237798]
[1757030063831,0.001,4309.3,4309.2,12.97237798]
[1757030065201,0.026,4309.8,4309.7,2.32034712]
[1757030065401,0.026,4309.8,4309.7,16.33940058]
[1757030065621,0.026,4309.8,4309.7,16.43219711]
[1757030066232,0.026,4309.8,4309.7,16.72969711]
[1757030067535,0.026,4309.8,4309.7,17.18489711]
[1757030069403,1.2866,4309.8,4309.7,16.88739711]
[1757030070607,0.7916,4309.8,4309.7,16.88739711]
[1757030071224,0.3364,4309.8,4309.7,16.88739711]
[1757030071430,0.026,4309.8,4309.7,16.88739711]
[1757030072210,0.026,4309.8,4309.7,17.18489711]
[1757030073506,0.026,4309.8,4309.7,16.28667677]
[1757030075517,0.026,4309.8,4309.7,18.62667677]
[1757030075846,0.026,4309.8,4309.7,18.32917677]
[1757030076143,1.2866,4309.8,4309.7,11.80534712]
[1757030079543,1.2866,4309.8,4309.7,12.07059494]
[1757030079868,1.2866,4309.8,4309.7,14.39094206]
[1757030081663,1.2866,4309.8,4309.7,4.026]
[1757030086471,1.2866,4309.8,4309.7,9.07059494]
[1757030087281,1.2866,4309.8,4309.7,14.39094206]
[1757030087282,0.026,4309.8,4309.7,14.39094206]
[1757030087440,0.026,4309.8,4309.7,10.80555258]
[1757030087648,0.026,4309.8,4309.7,11.19461425]
[1757030087982,0.3324,4309.8,4309.7,11.31061425]
[1757030088390,0.026,4309.8,4309.7,11.31061425]
[1757030088546,0.026,4309.8,4309.7,11.61911425]
[1757030088745,0.026,4309.8,4309.7,11.31061425]
[1757030089683,0.026,4309.8,4309.7,11.61911425]
[1757030089874,0.026,4309.8,4309.7,11.31061425]
[1757030090460,0.026,4309.8,4309.7,11.61911425]
[1757030093949,1.237,4309.8,4309.7,11.30861425]
[1757030094166,1.237,4309.8,4309.7,7.024]
[1757030094571,1.237,4309.8,4309.7,4.024]
[1757030098885,0.026,4309.8,4309.7,9.67605059]
[1757030099188,0.026,4309.8,4309.7,9.65284712]
[1757030099356,0.026,4309.8,4309.7,11.45924438]
[1757030104997,0.026,4309.8,4309.7,11.15074438]
[1757030105290,0.3324,4309.8,4309.7,11.15074438]
[1757030106493,0.026,4309.8,4309.7,11.15074438]
[1757030106865,0.026,4309.8,4309.7,11.45924438]
[1757030107293,0.026,4309.8,4309.7,13.16924438]
[1757030107961,0.3324,4309.8,4309.7,12.86074438]
[1757030108160,0.026,4309.8,4309.7,13.16924438]
[1757030109189,0.026,4309.8,4309.7,12.86074438]
[1757030111502,0.026,4309.8,4309.7,13.15314438]
[1757030111868,0.026,4309.8,4309.7,12.86074438]
[1757030112571,0.3192,4309.8,4309.7,6.51639726]
[1757030112902,1.231,4309.8,4309.7,5.73]
[1757030116818,0.026,4309.8,4309.7,5.73]
[1757030117315,0.001,4310.3,4310.0,2.32016018]
[1757030117612,0.001,4310.3,4310.2,10.36467289]
[1757030118711,0.001,4310.3,4310.2,11.23027289]
[1757030130717,0.001,4310.3,4310.2,10.93787289]
[1757030133450,0.001,4310.3,4310.2,11.23027289]
[1757030133631,0.001,4310.3,4310.2,12.9872162]
[1757030134336,0.001,4310.7,4310.6,2.31986266]
[1757030134504,0.001,4310.7,4310.6,11.95186266]
[1757030134703,0.001,4310.7,4310.6,12.24426266]
[1757030135514,0.001,4310.7,4310.6,19.12478992]
[1757030135714,0.001,4310.7,4310.6,21.67156594]
[1757030137819,0.001,4310.7,4310.6,21.26926594]
[1757030138735,0.001,4310.7,4310.6,21.67156594]
[1757030139400,0.001,4310.7,4310.6,21.26926594]
[1757030139601,1.22,4310.7,4310.6,9.63153868]
[1757030139808,1.22,4310.7,4310.6,11.49906266]
[1757030140217,0.001,4310.7,4310.6,11.49906266]
[1757030140434,1.22,4310.7,4310.6,11.49906266]
[1757030143817,1.22,4310.7,4310.6,13.83906266]
[1757030144018,0.001,4310.7,4310.6,13.83906266]
[1757030144217,0.001,4310.7,4310.6,16.04842608]
[1757030144412,0.001,4310.7,4310.6,13.83906266]
[1757030144738,1.22,4310.7,4310.6,13.38186266]
[1757030145719,1.22,4310.7,4310.6,11.04186266]
[1757030146544,0.001,4310.7,4310.6,11.04186266]
[1757030146745,0.2953,4310.7,4310.6,11.04186266]
[1757030147240,0.7432,4310.7,4310.6,11.04186266]
[1757030149038,1.22,4310.7,4310.6,11.04186266]
[1757030149637,1.22,4310.7,4310.6,11.15786266]
[1757030150133,1.22,4310.7,4310.6,7.84329784]
[1757030150333,1.22,4310.7,4310.6,5.719]
[1757030150566,1.3446,4310.7,4310.6,4.009]
[1757030155856,2.3199703,4310.4,4310.3,0.004]
[1757030156056,0.02312688,4310.4,4310.3,0.004]
[1757030156355,1.35812688,4310.4,4310.3,0.004]
[1757030156765,2.32050865,4309.4,4309.3,0.004]
[1757030157075,2.32115732,4308.2,4307.3,0.047]
[1757030157240,0.2943,4307.9,4307.3,0.047]
[1757030157431,2.61561665,4307.9,4307.3,0.047]
[1757030157624,3.56344353,4307.9,4307.3,0.047]
[1757030157931,3.54031665,4307.9,4307.3,0.047]
[1757030158136,3.56344353,4307.9,4307.3,0.047]
[1757030159167,3.56344353,4307.9,4307.0,4.008]
[1757030160563,3.54031665,4307.9,4307.0,4.008]
[1757030161273,1.219,4307.9,4307.0,4.008]
[1757030161941,1.24212688,4307.9,4307.0,4.008]
[1757030162331,3.56344353,4307.9,4307.0,4.008]
[1757030163250,1.24212688,4307.9,4307.0,6.32979232]
[1757030163451,0.4479,4308.3,4307.8,0.3316]
[1757030163657,0.4768,4308.4,4307.8,0.3316]
[1757030163862,0.9247,4308.2,4307.8,0.025]
[1757030164159,0.2943,4307.9,4307.8,0.025]
[1757030164361,0.4768,4308.2,4307.8,0.025]
[1757030164533,0.9247,4308.2,4307.8,0.025]
[1757030164732,0.4479,4308.1,4307.8,0.025]
[1757030165466,0.2943,4307.9,4307.8,0.025]
[1757030165762,0.4768,4308.1,4307.8,0.025]
[1757030166063,1.219,4307.9,4307.8,0.025]
[1757030166267,1.3409,4307.9,4307.8,0.025]
[1757030167071,1.4569,4307.9,4307.8,0.025]
[1757030168073,3.77821665,4307.9,4307.8,0.025]
[1757030169266,3.77821665,4307.9,4307.8,0.029]
[1757030169935,3.80134353,4307.9,4307.8,0.029]
[1757030170277,3.77821665,4307.9,4307.8,0.029]
[1757030171074,1.4569,4307.9,4307.8,0.029]
[1757030171247,3.77821665,4307.9,4307.8,0.029]
[1757030171452,1.4569,4307.9,4307.8,0.029]
[1757030171946,0.5322,4307.9,4307.8,0.029]
[1757030172367,0.116,4307.9,4307.8,0.3403]
[1757030172675,0.116,4307.9,4307.8,0.029]
[1757030174451,0.8686,4307.9,4307.8,0.029]
[1757030174775,3.64811665,4307.9,4307.8,0.029]
[1757030174979,1.3268,4307.9,4307.8,0.029]
[1757030177565,0.8686,4307.9,4307.8,0.029]
[1757030179646,3.55524353,4307.9,4307.8,0.029]
[1757030181184,7.56124353,4307.9,4307.8,0.029]
[1757030181387,7.53811665,4307.9,4307.8,0.029]
[1757030183082,13.47274391,4307.9,4307.8,0.029]
[1757030183242,16.47274391,4307.9,4307.8,0.029]
[1757030184281,16.83681909,4307.9,4307.8,0.029]
[1757030185074,16.47274391,4307.9,4307.8,0.029]
[1757030186183,3.53211665,4307.9,4307.8,0.029]
[1757030186348,7.53811665,4307.9,4307.8,0.029]
[1757030187051,3.53211665,4307.9,4307.8,0.029]
[1757030187258,7.56024353,4307.9,4307.8,0.029]
[1757030187460,7.53711665,4307.9,4307.8,0.029]
[1757030188280,11.61689372,4307.9,4307.8,1e-08]
[1757030188471,3.1135861,4307.4,4307.3,1e-08]
[1757030188778,17.78734024,4307.4,4307.3,1e-08]
[1757030188979,18.97501336,4307.4,4307.3,1e-08]
[1757030189182,3.11401736,4306.6,4306.5,1e-08]
[1757030189479,11.03801736,4306.6,4306.5,1e-08]